fUST/lending_fUST_20251030
["ID","MTS","AMOUNT","RATE_DAILY","PERIOD"]
[392624380,1761754246707,-151.0,0.00027397,31]
[392624381,1761754246717,-151.0,0.00027397,31]
[392624382,1761754246726,-151.0,0.00027397,31]
[392624383,1761754246736,-151.0,0.00027397,31]
[392624384,1761754246746,-245.658229,0.00027397,31]
[392624385,1761754246755,-500.0,0.00027397,5]
[392624386,1761754246764,-150.0,0.00027397,5]
[392624387,1761754246773,-150.0,0.00027397,5]
[392624388,1761754246783,-5244.34,0.000274,7]
[392624389,1761754246793,-10831.73,0.000274,2]
[392624390,1761754246802,-151.0,0.00027452,2]
[392624391,1761754246812,-383.71407802,0.00027455,110]
[392624392,1761754246822,-496.36917147,0.00027474,86]
[392624393,1761754246831,-45596.15512378,0.000275,2]
[392624394,1761754246843,-998.35962712,0.00027503,2]
[392624395,1761754246852,-151.0,0.00027507,2]
[392624396,1761754246861,-169.0,0.00027507,25]
[392624397,1761754246870,-200.0,0.0002751,7]
[392624398,1761754246879,-1160.0,0.00027529,2]
[392624399,1761754246890,-600.0,0.0002754,7]
[392624400,1761754246899,-2000.0,0.00027546,7]
[392624401,1761754246908,-1152.0,0.00027563,2]
[392624402,1761754246918,-650.0,0.00027612,5]
[392624403,1761754246927,-162.928175,0.00027626,60]
[392624404,1761754246937,-224.428497,0.00027628,30]
[392624405,1761754246947,-153.0,0.00027628,30]
[392624406,1761754246956,-153.0,0.00027628,30]
[392624407,1761754246964,-153.0,0.00027628,30]
[392624408,1761754246973,-153.0,0.00027628,30]
[392624409,1761754246983,-496.36917147,0.00027629,94]
[392624410,1761754246992,-537.97,0.00027671,2]
[392624411,1761754247001,-426.34837152,0.00027671,2]
[392624412,1761754247010,-571.38,0.00027671,7]
[392624413,1761754247020,-500.0,0.00027671,2]
[392624414,1761754247029,-899.3958568,0.00027671,2]
[392624415,1761754247039,-500.0,0.00027671,2]
[392624416,1761754247048,-4500.0,0.00027709,5]
[392624417,1761754247058,-214.32,0.0002771,7]
[392624418,1761754247068,-735.15012437,0.00027777,5]
[392624419,1761754247078,-496.36917147,0.00027784,102]
[392624420,1761754247087,-500.0,0.00027795,7]
[392624421,1761754247096,-500.0,0.00027815,7]
[392624422,1761754247106,-5000.0,0.00027856,2]
[392624423,1761754247115,-500.0,0.00027894,7]
[392624424,1761754247124,-157.801976,0.00027895,5]
[392624425,1761754247133,-158.163078,0.00027895,5]
[392624426,1761754247142,-200.0,0.0002791,7]
[392624427,1761754247152,-500.0,0.00027917,7]
[392624428,1761754247162,-496.36917147,0.00027939,110]
[392624429,1761754247172,-537.97,0.00027945,2]
[392624430,1761754247181,-571.38,0.00027945,8]
[392624431,1761754247190,-500.0,0.00027945,2]
[392624432,1761754247200,-500.0,0.00027945,2]
[392624433,1761754247210,-1000.0,0.00027945,5]
[392624434,1761754247220,-250.0,0.00027945,5]
[392624435,1761754247231,-250.0,0.00027945,5]
[392624436,1761754247240,-308.84431905,0.00027995,2]
[392624437,1761754247387,-15207.76953137,0.00028,2]
[392624438,1761754247397,-1628.5050915,0.00028,2]
[392624439,1761754247407,-1134.0,0.00028,2]
[392624440,1761754247416,-500.0,0.00028056,7]
[392624441,1761754247426,-500.0,0.00028073,7]
[392624442,1761754247435,-1260.0,0.00028077,2]
[392624443,1761754247445,-200.0,0.000281,7]
[392624444,1761754247455,-750.0,0.0002816,5]
[392624445,1761754247464,-500.0,0.00028199,7]
[392624446,1761754247473,-500.0,0.00028214,7]
[392624447,1761754247482,-538.12086591,0.00028219,2]
[392624448,1761754247492,-571.38,0.00028219,9]
[392624449,1761754247501,-500.0,0.00028219,2]
[392624450,1761754247510,-500.0,0.00028219,2]
[392624451,1761754247519,-966.45,0.00028238,7]
[392624452,1761754247529,-682.0,0.00028256,7]
[392624453,1761754247538,-5000.0,0.00028257,5]
[392624454,1761754247548,-5244.34,0.000283,7]
[392624455,1761754247557,-10831.73,0.000283,2]
[392624456,1761754247569,-500.0,0.0002831,7]
[392624457,1761754247579,-893.8679557,0.00028313,7]
[392624458,1761754247588,-516.25053571,0.00028414,7]
[392624459,1761754247597,-500.0,0.00028415,7]
[392624460,1761754247606,-571.38,0.00028493,10]
[392624461,1761754247615,-500.0,0.00028493,2]
[392624462,1761754247625,-500.0,0.00028493,2]
[392624463,1761754247635,-1313.67067673,0.00028493,5]
[392624464,1761754247644,-350.0,0.00028493,5]
[392624465,1761754247654,-350.0,0.00028493,5]
[392624466,1761754247664,-205138.29133354,0.000285,7]
[392624467,1761754247673,-157.801976,0.000285,10]
[392624468,1761754247682,-200.0,0.0002851,7]
[392624469,1761754247691,-641.27040712,0.00028516,7]
[392624470,1761754247700,-648.06485413,0.00028591,7]
[392624471,1761754247709,-1360.0,0.00028625,2]
[392624472,1761754247719,-850.0,0.00028708,5]
[392624473,1761754247728,-992.01320057,0.0002876,2]
[392624474,1761754247738,-2321.06883013,0.0002876,2]
[392624475,1761754247748,-26647.95354486,0.0002876,2]
[392624476,1761754247757,-4000.0,0.0002876,5]
[392624477,1761754247766,-571.38,0.00028767,11]
[392624478,1761754247776,-500.0,0.00028767,2]
[392624479,1761754247785,-2502.83,0.00028767,4]
[392624480,1761754247794,-500.0,0.00028767,2]
[392624481,1761754247803,-5500.0,0.00028804,5]
[392624482,1761754247813,-39320.67,0.000289,7]
[392624483,1761754247823,-200.0,0.0002891,7]
[392624484,1761754247833,-2000.0,0.0002893,7]
[392624485,1761754247844,-8137.33360928,0.00028999,2]
[392624486,1761754247857,-883.005909,0.00029,2]
[392624487,1761754247867,-2049.10248018,0.00029,15]
[392624488,1761754247876,-1500.0,0.00029,2]
[392624489,1761754247887,-1500.0,0.00029,2]
[392624490,1761754247897,-1500.0,0.00029,2]
[392624491,1761754247906,-1500.0,0.00029,2]
[392624492,1761754247915,-1500.0,0.00029,2]
[392624493,1761754247926,-1500.0,0.00029,2]
[392624494,1761754247935,-1500.0,0.00029,2]
[392624495,1761754247945,-1500.0,0.00029,2]
[392624496,1761754247954,-1500.0,0.00029,2]
[392624497,1761754247964,-1500.0,0.00029,2]
[392624498,1761754247974,-1500.0,0.00029,2]
[392624499,1761754247983,-430.17,0.00029,2]
[392624500,1761754247993,-7001.66762946,0.00029,6]
[392624501,1761754248003,-503.34433895,0.00029,7]
[392624502,1761754248012,-1134.0,0.00029,2]
[392624503,1761754248022,-647.75516814,0.00029016,5]
[392624504,1761754248031,-571.38,0.00029041,12]
[392624505,1761754248041,-161.61619605,0.00029041,2]
[392624506,1761754248051,-592.0,0.00029041,2]
[392624507,1761754248060,-190.824489,0.00029041,30]
[392624508,1761754248072,-190.824489,0.00029041,30]
[392624509,1761754248082,-190.824489,0.00029041,30]
[392624510,1761754248092,-190.824489,0.00029041,30]
[392624511,1761754248101,-190.824489,0.00029041,30]
[392624512,1761754248111,-190.824489,0.00029041,30]
[392624513,1761754248121,-190.824489,0.00029041,30]
[392624514,1761754248130,-190.824489,0.00029041,30]
[392624515,1761754248139,-190.824489,0.00029041,30]
[392624516,1761754248149,-190.824489,0.00029041,30]
[392624517,1761754248158,-190.824489,0.00029041,30]
[392624518,1761754248168,-190.824489,0.00029041,30]
[392624519,1761754248177,-190.824489,0.00029041,30]
[392624520,1761754248187,-190.824489,0.00029041,30]
[392624521,1761754248196,-190.824489,0.00029041,30]
[392624522,1761754248206,-190.824489,0.00029041,30]
[392624523,1761754248215,-190.824489,0.00029041,30]
[392624524,1761754248225,-190.824489,0.00029041,30]
[392624525,1761754248235,-190.824489,0.00029041,30]
[392624526,1761754248245,-190.824484,0.00029041,30]
[392624527,1761754248255,-450.0,0.00029041,5]
[392624528,1761754248264,-450.0,0.00029041,5]
[392624529,1761754248274,-1054.89,0.00029087,30]
[392624530,1761754248283,-200.0,0.000291,7]
[392624531,1761754248293,-1460.0,0.00029173,2]
[392624532,1761754248302,-600.0,0.00029184,7]
[392624533,1761754248315,-39430.25,0.000292,7]
[392624534,1761754248325,-950.0,0.00029256,5]
[392624535,1761754248334,-1000.0,0.00029264,30]
[392624536,1761754248344,-244.0,0.00029264,30]
[392624537,1761754248353,-160.0,0.00029279,3]
[392624538,1761754248364,-5244.34,0.000293,7]
[392624539,1761754248374,-10831.73,0.000293,2]
[392624540,1761754248385,-571.38,0.00029315,13]
[392624541,1761754248395,-6000.0,0.00029352,5]
[392624542,1761754248405,-2023.8766664,0.0002939,5]
[392624543,1761754248414,-52232.05452085,0.000294,2]
[392624544,1761754248521,-197767.94547915,0.000294,2]
[392624545,1761754248532,-154.20398141,0.0002947,20]
[392624546,1761754248541,-1529.393001,0.000295,2]
[392624547,1761754248551,-998.35962712,0.00029503,2]
[392624548,1761754248561,-415.24,0.0002951,7]
[392624549,1761754248571,-95000.0,0.0002956,2]
[392624550,1761754248581,-571.38,0.00029589,14]
[392624551,1761754248591,-550.0,0.00029589,5]
[392624552,1761754248601,-550.0,0.00029589,5]
[392624553,1761754248611,-230.61,0.0002971,7]
[392624554,1761754248621,-1560.0,0.00029721,2]
[392624555,1761754248630,-1050.0,0.00029804,5]
[392624556,1761754248640,-200.0,0.0002981,7]
[392624557,1761754248649,-571.38,0.00029863,15]
[392624558,1761754248658,-500.0,0.00029863,5]
[392624559,1761754248668,-6500.0,0.000299,5]
[392624560,1761754248677,-341.04,0.0002991,7]
[392624561,1761754248686,-338.10325453,0.00029995,2]
[392624562,1761754248696,-180.0,0.0003,2]
[392624563,1761754248705,-2086.93410023,0.0003,2]
[392624564,1761754248715,-200.54932836,0.0003,14]
[392624565,1761754248725,-165.46,0.0003,5]
[392624566,1761754248735,-2030.92190287,0.0003,2]
[392624567,1761754248745,-13146.42764155,0.0003,2]
[392624568,1761754248754,-119682.90085863,0.0003,20]
[392624569,1761754248766,-15226.20198341,0.0003,20]
[392624570,1761754248777,-423.923407,0.0003,20]
[392624571,1761754248788,-9049.17201168,0.0003,20]
[392624572,1761754248799,-14712.25939094,0.0003,20]
[392624573,1761754248810,-18910.68697879,0.0003,20]
[392624574,1761754248822,-20586.08075537,0.0003,20]
[392624584,1761754255601,150.0,0.00013857,30]
[392624585,1761754256049,284.34,0.00016166,30]
[392624586,1761754256469,426.51,0.00018476,30]
[392624587,1761754284753,1000.0,0.0002,60]
[392624589,1761754320373,151.0,0.0003013,120]
[392624590,1761754329531,150.0,0.0003013,120]
[392624669,1761754358680,240.24,0.0003013,120]
[392624706,1761754715448,-5000.0,0.00018439,5]
[392624707,1761754715739,-150.0,0.00018626,2]
[392624708,1761754715768,-475.23908189,0.00019473,2]
[392624709,1761754715795,-164.21961969,0.00019473,2]
[392624710,1761754715822,-160.0,0.00019487,2]
[392624711,1761754715851,-161.3798743,0.00019499,2]
[392624712,1761754715882,-1200.0,0.000195,2]
[392624713,1761754715914,-300.0,0.000195,2]
[392624714,1761754715943,-284.0,0.00019501,2]
[392624715,1761754715975,-300.0,0.00019501,2]
[392624716,1761754716007,-300.0,0.00019501,2]
[392624717,1761754716038,-300.0,0.00019501,2]
[392624718,1761754716069,-201.35,0.00019502,3]
[392624719,1761754716101,-224.73,0.00019502,3]
[392624720,1761754716130,-197.5,0.00019502,3]
[392624721,1761754716158,-169.69,0.00019502,3]
[392624722,1761754716301,-863.78,0.00019502,3]
[392624723,1761754716332,-295.58,0.00019502,3]
[392624724,1761754716360,-246.32,0.00019502,3]
[392624725,1761754716388,-205.27,0.00019502,3]
[392624726,1761754716418,-171.05,0.00019502,3]
[392624727,1761754716448,-855.3,0.00019502,3]
[392624728,1761754716477,-214.02488298,0.00019511,2]
[392624729,1761754716504,-316.79547917,0.00019511,2]
[392624730,1761754716532,-500.0,0.00019511,2]
[392624731,1761754716566,-500.0,0.00019511,2]
[392624732,1761754716593,-159.79753545,0.00019511,2]
[392624733,1761754716621,-156.75534788,0.00019511,2]
[392624734,1761754716821,-500.0,0.00019511,2]
[392624735,1761754717001,-459.4556814,0.00019511,2]
[392624736,1761754717032,-500.0,0.00019511,2]
[392624737,1761754717066,-500.0,0.00019511,2]
[392624738,1761754717096,-500.0,0.00019511,2]
[392624739,1761754717126,-500.0,0.00019511,2]
[392624740,1761754717163,-500.0,0.00019511,2]
[392624741,1761754717193,-500.0,0.00019511,2]
[392624742,1761754717227,-500.0,0.00019511,2]
[392624743,1761754717260,-500.0,0.00019511,2]
[392624744,1761754717292,-500.0,0.00019511,2]
[392624745,1761754717920,-81.0986372,0.00019511,2]
[392624746,1761754718230,-418.9013628,0.00019511,2]
[392624747,1761754718264,-204.19799983,0.00019511,2]
[392624748,1761754718296,-500.0,0.00019511,2]
[392624749,1761754718327,-500.0,0.00019511,2]
[392624750,1761754718359,-500.0,0.00019511,2]
[392624751,1761754718391,-500.0,0.00019511,2]
[392624752,1761754718422,-500.0,0.00019511,2]
[392624753,1761754718452,-500.0,0.00019511,2]
[392624754,1761754718485,-500.0,0.00019511,2]
[392624755,1761754718516,-500.0,0.00019511,2]
[392624756,1761754718547,-253.81127474,0.00019511,2]
[392624757,1761754718699,-246.18872526,0.00019511,2]
[392624758,1761754718732,-240.30469191,0.00019511,2]
[392624759,1761754718763,-197.86275811,0.00019511,2]
[392624760,1761754718792,-500.0,0.00019511,2]
[392624761,1761754727634,5000.0,0.00019512,2]
[392624806,1761754853120,-181.918877,0.00018511,2]
[392624807,1761754853152,-2041.08063846,0.00019124,2]
[392624808,1761754853183,-2054.01096908,0.00019317,2]
[392624809,1761754853407,-1445.98903092,0.00019317,2]
[392624810,1761754853439,-161.3798743,0.00019473,2]
[392624811,1761754853467,-151.0,0.000195,2]
[392624812,1761754853497,-151.0,0.000195,2]
[392624813,1761754853525,-151.0,0.000195,2]
[392624815,1761754853717,-151.0,0.000195,2]
[392624816,1761754853754,-151.0,0.000195,2]
[392624817,1761754853783,-151.0,0.000195,2]
[392624818,1761754853811,-151.0,0.000195,2]
[392624819,1761754853844,-151.0,0.000195,2]
[392624820,1761754853874,-151.0,0.000195,2]
[392624821,1761754853904,-151.0,0.000195,2]
[392624822,1761754853933,-151.0,0.000195,2]
[392624823,1761754853963,-151.0,0.000195,2]
[392624824,1761754853994,-151.0,0.000195,2]
[392624825,1761754854025,-151.0,0.000195,2]
[392624826,1761754854059,-151.0,0.000195,2]
[392624827,1761754854090,-151.0,0.000195,2]
[392624828,1761754854120,-151.0,0.000195,2]
[392624829,1761754854149,-151.0,0.000195,2]
[392624830,1761754854177,-151.0,0.000195,2]
[392624831,1761754854206,-151.0,0.000195,2]
[392624832,1761754854234,-365.09,0.00019502,3]
[392624833,1761754854381,-182.55,0.00019502,3]
[392624834,1761754854412,-547.67,0.00019502,3]
[392624835,1761754854442,-1200.0,0.0001951,2]
[392624836,1761754854471,-300.0,0.00019511,2]
[392624837,1761754854500,-300.0,0.00019511,2]
[392624840,1761754864914,300.0,0.00019511,2]
[392624841,1761754869201,500.0,0.0001951,2]
[392624842,1761754869450,500.0,0.00019511,2]
[392624860,1761754982683,2000.0,0.0003013,120]
[392624862,1761754990737,-436.13974427,0.00019473,2]
[392624863,1761754990767,-300.0,0.0001951,2]
[392624864,1761754990796,-150.0,0.0001951,2]
[392624865,1761754990829,-221.75683542,0.00019511,2]
[392624866,1761754990860,-500.0,0.00019511,2]
[392624867,1761754990891,-279.51292683,0.00019511,2]
[392624868,1761754990926,-500.0,0.00019511,2]
[392624869,1761754990956,-500.0,0.00019511,2]
[392624870,1761754990985,-500.0,0.00019511,2]
[392624871,1761754991015,-500.0,0.00019511,2]
[392624872,1761754991044,-500.0,0.00019511,2]
[392624873,1761754991076,-500.0,0.00019511,2]
[392624874,1761754991249,-500.0,0.00019511,2]
[392624875,1761754991279,-500.0,0.00019511,2]
[392624876,1761754991308,-500.0,0.00019511,2]
[392624877,1761754991339,-500.0,0.00019511,2]
[392624878,1761754991370,-628.76439368,0.00019511,2]
[392624879,1761754991400,-300.0,0.00019511,2]
[392624880,1761754991431,-589.92630213,0.00019511,2]
[392624883,1761754994792,166.66,0.00019511,2]
[392624891,1761755010686,-5219.62220744,0.00019512,2]
[392624892,1761755010779,-10000.01,0.00019512,2]
[392624893,1761755010943,-10000.01,0.00019512,2]
[392624897,1761755013669,-10000.01,0.00019512,2]
[392624898,1761755016941,-10000.01,0.00019512,2]
[392624899,1761755019783,-10000.01,0.00019512,2]
[392624900,1761755022718,-10000.01,0.00019512,2]
[392624901,1761755025828,-10000.01,0.00019512,2]
[392624902,1761755031746,-248.15067506,0.00019317,2]
[392624903,1761755031785,-9503.70864988,0.00019512,2]
[392624904,1761755034911,-500.0,0.00019511,2]
[392624905,1761755034945,-500.0,0.00019511,2]
[392624906,1761755034976,-500.0,0.00019511,2]
[392624907,1761755035006,-340.94626561,0.00019511,2]
[392624908,1761755035038,-500.0,0.00019511,2]
[392624909,1761755035071,-500.0,0.00019511,2]
[392624910,1761755035102,-500.0,0.00019511,2]
[392624911,1761755035134,-500.0,0.00019511,2]
[392624912,1761755035166,-500.0,0.00019511,2]
[392624913,1761755035196,-500.0,0.00019511,2]
[392624914,1761755035354,-318.11746878,0.00019511,2]
[392624915,1761755043776,-3527.9432354,0.00019317,2]
[392624916,1761755043805,-453.69,0.00019502,3]
[392624917,1761755043838,-181.88253122,0.00019511,2]
[392624918,1761755043869,-500.0,0.00019511,2]
[392624919,1761755043900,-204.48802346,0.00019511,2]
[392624920,1761755043993,-264.00241984,0.00019511,2]
[392624921,1761755046801,-5000.0,0.00019124,2]
[392624922,1761755046836,-0.01,0.0001951,2]
[392624923,1761755050136,-299.99,0.0001951,2]
[392624924,1761755050167,-235.99758016,0.00019511,2]
[392624925,1761755050197,-500.0,0.00019511,2]
[392624926,1761755050271,-7928.03483968,0.00019512,2]
[392624929,1761755104978,152.1,0.0001469,2]
[392624936,1761755115991,2000.0,0.0003013,120]
[392624954,1761755142048,1516.4463097,0.0003013,120]
[392624963,1761755158546,332355.60519186,0.00030136,120]
[392624968,1761755166587,164.0,8.3e-07,2]
[392624970,1761755167815,164.0,8.3e-07,2]
[392624971,1761755170110,164.0,8.3e-07,2]
[392624972,1761755171181,164.0,8.3e-07,2]
[392625005,1761755338341,797.43116795,0.0003013,120]
[392625009,1761755370251,-5000.0,0.00018744,2]
[392625010,1761755370272,-3279.0434696,0.00018933,2]
[392625046,1761755432277,-5000.0,0.00018744,2]
[392625047,1761755432289,-1720.9565304,0.00018933,2]
[392625048,1761755432301,-150.0,0.00019125,2]
[392625049,1761755432312,-513.0,0.00019411,2]
[392625050,1761755432321,-317.8996253,0.00019412,2]
[392625051,1761755432331,-205.79867159,0.00019412,2]
[392625052,1761755432341,-300.0,0.00019499,2]
[392625053,1761755432351,-300.0,0.000195,2]
[392625054,1761755432362,-300.0,0.000195,2]
[392625055,1761755432371,-300.0,0.000195,2]
[392625056,1761755432381,-43.8023175,0.000195,2]
[392625057,1761755432393,-539.86438288,0.000195,2]
[392625058,1761755432416,-1207.60162151,0.000195,2]
[392625060,1761755432429,-827.97173833,0.000195,2]
[392625062,1761755432442,-151.0,0.000195,2]
[392625064,1761755432451,-151.0,0.000195,2]
[392625066,1761755432461,-151.0,0.000195,2]
[392625068,1761755432470,-151.0,0.000195,2]
[392625070,1761755432481,-151.0,0.000195,2]
[392625072,1761755432491,-151.0,0.000195,2]
[392625074,1761755432500,-151.0,0.000195,2]
[392625076,1761755432509,-151.0,0.000195,2]
[392625078,1761755432520,-151.0,0.000195,2]
[392625080,1761755432531,-151.0,0.000195,2]
[392625082,1761755432540,-151.0,0.000195,2]
[392625084,1761755432550,-151.0,0.000195,2]
[392625086,1761755432559,-151.0,0.000195,2]
[392625088,1761755432568,-151.0,0.000195,2]
[392625090,1761755432578,-151.0,0.000195,2]
[392625091,1761755432588,-151.0,0.000195,2]
[392625092,1761755432596,-151.0,0.000195,2]
[392625093,1761755432606,-151.0,0.000195,2]
[392625095,1761755432616,-151.0,0.000195,2]
[392625096,1761755432626,-151.0,0.000195,2]
[392625097,1761755432636,-1314.77,0.00019502,3]
[392625098,1761755432645,-657.39,0.00019502,3]
[392625099,1761755432655,-328.69,0.00019502,3]
[392625100,1761755432664,-164.35,0.00019502,3]
[392625101,1761755432673,-500.0,0.0001951,2]
[392625102,1761755432683,-500.0,0.00019511,2]
[392625103,1761755432692,-457.40169619,0.00019511,2]
[392625104,1761755432701,-40065.54040317,0.00019512,2]
[392625105,1761755432713,-237283.02389983,0.00019512,2]
[392625106,1761755432723,-500.0,0.00019573,2]
[392625107,1761755432733,-190.42656212,0.00019699,4]
[392625108,1761755432743,-4012.8,0.0002,3]
[392625109,1761755432753,-1138.29909377,0.00020121,2]
[392625110,1761755432762,-244.0,0.00020278,10]
[392625111,1761755432771,-2629.54,0.00020872,3]
[392625112,1761755432785,-1314.78,0.00020872,3]
[392625113,1761755432798,-657.38,0.00020872,3]
[392625114,1761755432807,-328.7,0.00020872,3]
[392625115,1761755432816,-177.0,0.00021125,2]
[392625116,1761755432825,-420.0,0.00021243,2]
[392625117,1761755432835,-500.0,0.000214,2]
[392625118,1761755432844,-160.0,0.000218,2]
[392625119,1761755432856,-403.72361849,0.00021842,2]
[392625120,1761755432869,-1000.0,0.00021948,2]
[392625121,1761755432879,-286.89,0.00022146,2]
[392625122,1761755432890,-20309.04,0.000223,7]
[392625123,1761755432899,-260.0,0.00022348,2]
[392625124,1761755432908,-1500.0,0.00022496,2]
[392625125,1761755432919,-984.0,0.00022552,2]
[392625126,1761755432928,-2167.0,0.00022552,2]
[392625127,1761755432938,-633.0,0.00022552,2]
[392625128,1761755432947,-412.0,0.00022552,2]
[392625129,1761755432957,-500.0,0.00022575,8]
[392625130,1761755432967,-360.0,0.00022896,2]
[392625131,1761755432977,-13665.19711714,0.00023,3]
[392625132,1761755432988,-50000.0,0.00023012,2]
[392625133,1761755432999,-2000.0,0.00023044,2]
[392625134,1761755433009,-500.0,0.00023073,2]
[392625135,1761755433018,-181.918877,0.00023077,2]
[392625136,1761755433028,-204.0,0.00023124,2]
[392625137,1761755433038,-2716.23,0.00023129,2]
[392625138,1761755433223,-587.0,0.00023143,2]
[392625139,1761755433233,-460.0,0.00023444,2]
[392625140,1761755433242,-500.0,0.00023487,2]
[392625141,1761755433252,-1000.0,0.00023621,2]
[392625142,1761755433263,-500.0,0.000239,2]
[392625143,1761755433272,-560.0,0.00023992,2]
[392625144,1761755433281,-500.0,0.00024,2]
[392625145,1761755433291,-500.0,0.00024069,2]
[392625146,1761755433301,-12500.0,0.00024109,7]
[392625147,1761755433311,-1500.0,0.00024168,2]
[392625148,1761755433321,-500.0,0.00024171,2]
[392625149,1761755433330,-500.0,0.00024174,2]
[392625150,1761755433340,-500.0,0.00024177,2]
[392625151,1761755433350,-500.0,0.00024239,2]
[392625152,1761755433360,-174.87517662,0.00024247,12]
[392625153,1761755433370,-168.0,0.00024382,2]
[392625154,1761755433379,-1116.0,0.000245,5]
[392625155,1761755433389,-660.0,0.0002454,2]
[392625156,1761755433399,-40995.57,0.000246,3]
[392625157,1761755433409,-522.25247841,0.00024702,2]
[392625158,1761755433419,-500.0,0.00024711,2]
[392625159,1761755433428,-2000.0,0.00024716,2]
[392625160,1761755433439,-16692.56987701,0.00024774,2]
[392625161,1761755433449,-1746.51022728,0.000248,4]
[392625162,1761755433458,-500.0,0.00024873,2]
[392625163,1761755433468,-500.0,0.00024873,2]
[392625164,1761755433479,-500.0,0.00024873,2]
[392625165,1761755433489,-500.0,0.00024873,2]
[392625166,1761755433499,-600.77694013,0.00024873,2]
[392625167,1761755433509,-500.0,0.00024873,2]
[392625168,1761755433519,-120001.89010946,0.000249,2]
[392625169,1761755433533,-556.49649878,0.000249,2]
[392625170,1761755433545,-3967.7,0.000249,2]
[392625171,1761755433556,-155707.23575931,0.000249,2]
[392625198,1761755438263,-500.0,0.00024873,2]
[392625200,1761755438274,-26.46954481,0.0002489,3]
[392625203,1761755438291,-466.59045519,0.0002489,3]
[392625205,1761755438302,-6.21388634,0.000249,2]
[392625207,1761755438315,-7327.1387591,0.000249,2]
[392625209,1761755438327,-27661.32770806,0.000249,2]
[392625211,1761755438339,-17664.9456033,0.000249,2]
[392625213,1761755438350,-12986.21225214,0.000249,2]
[392625216,1761755438361,-617.6599536,0.000249,2]
[392625253,1761755440439,-556.35,0.000249,2]
[392625254,1761755440508,-1086.64761428,0.000249,2]
[392625267,1761755443372,-2777.25,0.000249,2]
[392625268,1761755443384,-323.89483058,0.000249,2]
[392625273,1761755446291,-22213.998,0.000249,2]
[392625274,1761755446357,-249549.80355705,0.000249,2]
[392625275,1761755446366,-168.0,0.00024992,2]
[392625276,1761755446375,-2000.0,0.00025,2]
[392625277,1761755446385,-206.032677,0.00025,2]
[392625278,1761755446394,-760.0,0.00025088,2]
[392625279,1761755446403,-231.0,0.00025125,2]
[392625280,1761755446412,-823.0,0.00025213,2]
[392625281,1761755446421,-2500.0,0.00025264,2]
[392625282,1761755446431,-168.0,0.00025334,2]
[392625283,1761755446440,-2716.23,0.00025419,2]
[392625284,1761755446449,-500.0,0.00025421,2]
[392625285,1761755446458,-1000.0,0.00025421,2]
[392625286,1761755446467,-1000.0,0.00025421,2]
[392625287,1761755446477,-1000.0,0.00025421,2]
[392625288,1761755446486,-1000.0,0.00025421,2]
[392625289,1761755446495,-1000.0,0.00025421,2]
[392625291,1761755446504,-2000.0,0.00025483,7]
[392625293,1761755446513,-984.0,0.00025552,2]
[392625295,1761755446522,-2167.0,0.00025552,2]
[392625297,1761755446532,-633.0,0.00025552,2]